Workbook

Sheet Cover Page
D1: Add company logo
N2: Version 20.6
B8: Add photo
N13: Notes:
N14: This template may require adjustments by individual operators to meet specific reporting requirements as defined in the site Permit(s)
B29: Annual Performance Report 2021
B31: Permit EPR/EP3034SN
B33: Eastcroft Energy from Waste Plant
B37: WasteNotts (Reclamation) Limited
B39: Year: | C39: 2021
B41: Address: | C41: Incinerator Road, Off Cattle Market Road, Nottingham NG23JH
B43: Tel: | C43: 0115 9869505
B45: Email: | C45: leigh.hornsby@fccenvironment.co.uk
B47: Prepared by: | C47: Leigh Hornsby | F47: Position: | G47: Environment Manager
B49: Approved by: | C49: Tony Cox | F49: Position: | G49: General Manager
B51: Version: | C51: 1
B53: Issue Date: | C53: 2022-01-28

Sheet Contents
A1: =+'Cover Page'!$B$29 -> Annual Performance Report 2021 | E1: =+'Cover Page'!$B$33 -> Eastcroft Energy from Waste Plant
A3: Contents | K3: Notes:
A4: Section | B4: Subject | H4: Page | K4: Section references and Page nos. to be inserted
B5: Facility Information | H5: 3 | K5: Sections and Subjects may require adjustment by individual operators to meet specific reporting requirements as defined in the sites Permit(s)
B6: Operational Summary | H6: 4
B7: Operational Data | H7: 5
B8: Performance Form 1 | H8: 6
B9: Energy Form 1 | H9: 7
B10: Permit Compliance | H10: 8
B11: Improvements | H11: 9
B12: Public Liasion | H12: 10
B13: Residue Quality - Optional | H13: 11
B14: Emissions to Air (periodically monitored) | H14: 12
B15: Emissions to Air (continuously monitored) | H15: 13
B16: Hydrogen Chloride emissions | H16: 14
B17: Sulphur Dioxdie emsissions | H17: 15
B18: Oxides of Notrigen emissions | H18: 16
B19: Total Organic Carbon emissions | H19: 17
B20: Particulate Matter emissions | H20: 18
B21: Carbon Monoxide emissions | H21: 19
B22: Ammonia emissions | H22: 20
A25: Version Control
A26: Section | B26: Information | H26: Date
A33: Distribution
A34: Copy | B34: Name, Role | H34: No.
A43: This report is required under the Industrial Emissions Directive’s Article 55(2) requirements on reporting and public information on waste incineration plants and co-incineration plants, which require the operator to produce an annual report on the functioning and monitoring of the plant and make it available to the public.

Sheet Facility Info
A1: =+'Cover Page'!$B$29 -> Annual Performance Report 2021 | E1: =+'Cover Page'!$B$33 -> Eastcroft Energy from Waste Plant
A3: Plant Description and Design | K3: Notes:
A5: The EfW facility currently comprises two incineration streams each capable of burning up to 11.7 tonnes/hour of municipal and light commercial and industrial waste. The plant has a theoretical capacity of just over 200,000 tonnes per annum; however with planned maintenance the annual throughput is approximately 185,000 tonnes. The site has planning permission to add a third line to the plant which is included in the scope of the Environmental Permit (EP3034SN) but has yet to be developed. The facility generates around 50 tonnes of steam per hour with no electrical generation undertaken at the Eastcroft facility. Steam is exported to a third party (Nottingham City Council, formerly EnviroEnergy) who operate a combined heat and power facility providing electricity and feeding into Nottingham's district heating network. | K5: Include summary of plant design, design capacity, no. of combustion lines, electrical and heat capacity and any other general information that descibes the facility, its location and purpose
A20: Summary of Operational Processes and Procedures
A22: Municipal waste and non-hazardous commercial/industrial/trade waste is delivered to site by lorry and tipped into one of two refuse bunkers inside the tipping hall. Deliveries are typically made from Monday to Saturday morning. Waste is transferred from the bunkers by grab crane into the feed chute of each incinerator stream. Waste is only fed to the incinerator if the temperature is above 850°C. Each incinerator stream has a moving grate on which the waste is burned, with preheated air being injected from below the grate. Combustion air is drawn from the tipping hall and boiler hall to reduce odours and dust levels in these areas and fed to the furnace via an air preheater which can raise the temperature of the air up to 160°C. Two auxiliary burners, fired on gas oil, are installed halfway up each combustion chamber to maintain temperatures above the 850°C threshold. The auxiliary burners are also used to pre-heat the incinerators before start up. Ammonium hydroxide is injected into the furnaces to reduce emissions of nitrogen oxides (this technique is known as selective non-catalytic reduction or SNCR). Hot gases from the combustion chamber pass to a boiler in which steam is raised and sent to the London Road Heat Station (operated by Nottingham City Council, formerly EnviroEnergy) for supply of heat to the district heating system and generation of electricity. Flue gases leaving the boiler are cooled to about 130°C in the economiser to achieve the correct temperature for gas treatment. Incinerator bottom ash is quenched in water and collected in a residuals bunker inside the building. The silo is emptied regularly and the bottom ash is sent for metal extraction and use as a substitute aggregate. Fly ash entrained within the incinerator exhaust gases, together with any accumulations of dust removed from the walls of the economiser by the shot cleaning system, is treated in the air pollution control equipment.Each incinerator stream has its own dedicated air pollution control equipment. Cooled flue gases leaving the economiser are dosed with a mixture of hydrated lime, activated carbon and recirculated reagent, in order to reduce acid gases (by reaction with the lime), and other substances such as heavy metals and hydrocarbons (by adsorption onto the activated carbon). The exhaust gases and reagent particles are then filtered in a four compartment fabric filter to remove the dust burden. The fabric filters are regularly cleaned by reverse jet pulses, and the collected end product is stored in the APC residue silo. The APC residue silo is regularly emptied and the residue used to treat industrial acidic wastes before final disposal in a suitably licensed landfill site. The treated exhaust gases from both streams are discharged via the 91m high stack. The final emissions from the municipal waste incinerator are continuously monitored for particulate matter, sulphur dioxide, nitrogen oxides, carbon monoxide, hydrogen chloride, volatile organic compounds and ammonia prior to entry into the main stack. | K22: Include summary of key processes and procedures such as (but not limited to); waste reception, control rooms, grate, bed and bolier, energy & heat generation, cooling systems, residue management, emission controls, health and safety systems, maintenance

Sheet Operational Data
A1: =+'Cover Page'!$B$29 -> Annual Performance Report 2021 | E1: =+'Cover Page'!$B$33 -> Eastcroft Energy from Waste Plant
A3: Operational Data | K3: Notes:
A4: Plant Size | B4: 200000 | D4: tonnes pa | F4: MWth | H4: MWe | K4: * - RDF to include SRF
A5: No. of combustion lines | B5: 2 | D5: No. of Turbines: | F5: 0 | K5: ** - CHP plants only
K6: 2020 updates include; heat in MWh, water in Litres, NCV in MJ/kg
A7: Waste types received | B7: Unit | C7: Q1 | D7: Q2 | E7: Q3 | F7: Q4 | G7: Year Total | H7: %
A8: Household / Local Authority | B8: tonnes | C8: 46766 | D8: 39566 | E8: 36051 | F8: 44561 | G8: =SUM(C8:F8) -> 166944 | H8: =IF(G8>0,G8/$G$18,"-") -> 0.8975316911 | K8: Availabiity Definition: 'the availability of a line is to be calculated by the number of hours the line reported Continuously Monitored emission levels to the Regulator through the calendar year divided by the total number of hours in that year. The overall plant availability is calculated as the Mean of all lines in the plant. For clarity this includes periods of Other Than Normal Operating Conditions (OTNOC) and abnormal operation.' Rationale: The primary function of an Energy from Waste facility is the disposal of waste. It follows therefore that the availability of a plant is determined by the period of time a facility spends undertaking this activity.
A9: Commercial & Industrial | C9: 4532 | D9: 3528.46 | E9: 5312 | F9: 5687 | G9: =SUM(C9:F9) -> 19059.46 | H9: 0.1024683089
A10: Hazardous | G10: 0 | H10: -
A11: Clinical | G11: 0 | H11: -
A12: Waste wood (biomass) | G12: 0 | H12: -
A13: Refuse Derived Fuel * - H'hold/LA | G13: =SUM(C13:F13) -> 0 | H13: -
A14: Refuse Derived Fuel * - C&I | G14: 0 | H14: -
A15: Other [Please specify] | G15: 0 | H15: -
A16: Other [Please specify]
A17: Other [Please specify]
A18: Total waste received | C18: =SUM(C8:C17) -> 51298 | D18: =SUM(D8:D17) -> 43094.46 | E18: =SUM(E8:E17) -> 41363 | F18: =SUM(F8:F17) -> 50248 | G18: =SUM(G8:G17) -> 186003.46 | H18: 1
A19: Rejected Waste | G19: =SUM(C19:F19) -> 0 | H19: =IF(G19>0,G19/$G$18,"-") -> -
A20: Unprocessed waste transferred out | G20: =SUM(C20:F20) -> 0 | H20: =IF(G20>0,G20/$G$18,"-") -> -
A21: Total waste combusted | C21: =C18-SUM(C19:C20) -> 51298 | D21: =D18-SUM(D19:D20) -> 43094.46 | E21: 41363 | F21: 50248 | G21: =SUM(C21:F21) -> 186003.46 | H21: =IF(G21>0,G21/$G$18,"-") -> 1
A23: Energy Useage / Export | B23: Unit | C23: Q1 | D23: Q2 | E23: Q3 | F23: Q4 | G23: Year Total | H23: KWh/te
A24: Power Generated | B24: MWh | G24: =SUM(C24:F24) -> 0 | H24: =IF(G24>0,G24*1000/$G$21,"-") -> -
A25: Power Exported | G25: =SUM(C25:F25) -> 0 | H25: =IF(G25>0,G25*1000/$G$21,"-") -> -
A26: Power Used on site | C26: 2636 | D26: 2268 | E26: 2054 | F26: 2638 | G26: =SUM(C26:F26) -> 9596 | H26: =IF(G26>0,G26*1000/$G$21,"-") -> 51.59043816
A27: Power Imported | C27: 2636 | D27: 2268 | E27: 2054 | F27: 2638 | G27: 9596 | H27: =IF(G27>0,G27*1000/$G$21,"-") -> 51.59043816
A28: Parasitic Load | B28: % | C28: =IF(C24>0,1-C25/(C24+C27),"-") -> - | D28: =IF(D24>0,1-D25/(D24+D27),"-") -> - | E28: =IF(E24>0,1-E25/(E24+E27),"-") -> - | F28: =IF(F24>0,1-F25/(F24+F27),"-") -> - | G28: =IF(G24>0,1-G25/(G24+G27),"-") -> -
A29: Thermal Energy Produced ** | B29: MWh | C29: 109375 | D29: 85427 | E29: 82247 | F29: 113811 | G29: =SUM(C29:F29) -> 390860 | H29: =IF(G29>0,G29*1000/$G$21,"-") -> 2101.35876
A30: Thermal Energy Exported ** | C30: 109375 | D30: 85427 | E30: 82247 | F30: 113811 | G30: 390860 | H30: =IF(G30>0,G30*1000/$G$21,"-") -> 2101.35876
A31: R1 value | G31: Design / Operational / n/a
A33: Waste Disposal & Recovery | B33: Unit | C33: Q1 | D33: Q2 | E33: Q3 | F33: Q4 | G33: Year Total | H33: % inputs
A34: APC Residues - produced | B34: tonnes | C34: 1161 | D34: 1018 | E34: 913 | F34: 1102 | G34: =SUM(C34:F34) -> 4194 | H34: =IF(G34>0,G34/$G$21,"-") -> 0.02254796766
A35: IBA - produced | C35: 9743 | D35: 9119 | E35: 7743 | F35: 9645 | G35: 36250 | H35: =IF(G35>0,G35/$G$21,"-") -> 0.1948888478
A36: Metals recycling | G36: =SUM(C36:F36) -> 0 | H36: -
A37: Other | C37: 0 | D37: 0 | E37: 0 | F37: 0 | G37: =SUM(C37:F37) -> 0 | H37: -
A38: Other | C38: 0 | D38: 0 | E38: 0 | F38: 0 | G38: 0 | H38: -
A39: Other | C39: 0 | D39: 0 | E39: 0 | F39: 0 | G39: 0 | H39: -
A41: Raw Material Usage | B41: Unit | C41: Q1 | D41: Q2 | E41: Q3 | F41: Q4 | G41: Year Total | H41: kg or Ltr /te
A42: Mains Water | B42: ltrs | C42: 708 | D42: 684 | E42: 1633 | F42: 1482 | G42: =SUM(C42:F42) -> 4507 | H42: =IF(G42>0,G42/$G$21,"-") -> 0.02423073205
A43: Other Water | B43: ltrs | G43: 0 | H43: =IF(G43>0,G43/$G$21,"-") -> -
A44: Ammonia | B44: kgs | C44: 140000 | D44: 120000 | E44: 100000 | F44: 155000 | G44: 515000 | H44: 2.768765699
A45: Urea | B45: kgs | G45: =SUM(C45:F45) -> 0 | H45: -
A46: Activated Carbon | B46: kgs | C46: 25920 | D46: 26208 | E46: 26496 | F46: 26496 | G46: 105120 | H46: 0.5651507773
A47: Lime / hydrated lime | B47: kgs | C47: 161064 | D47: 133736 | E47: 147421 | F47: 165940 | G47: 608161 | H47: 3.269621974
A48: Fuel oil | B48: ltrs | C48: 10616 | D48: 5797 | E48: 50374 | F48: 14161 | G48: 80948 | H48: 0.4351962055
A49: Gas | B49: cf | C49: 0 | D49: 0 | E49: 0 | F49: 0 | G49: 0
A50: Other | C50: 0 | D50: 0 | E50: 0 | F50: 0 | G50: 0
A52: Summary | B52: Line/Unit | C52: Q1 | D52: Q2 | E52: Q3 | F52: Q4 | G52: Year Total | J52: Hrs in year
A53: Availability of waste combustion by line, hrs | B53: 1 | C53: 2149 | D53: 1831 | E53: 1622 | F53: 2200 | G53: =SUM(C53:F53) -> 7802 | H53: 0.892 | J53: 8760
B54: 2 | C54: 2159 | D54: 1824 | E54: 1790 | F54: 2200 | G54: 7973 | H54: 0.911
B55: 3 | G55: 0 | H55: x %
B56: 4 | G56: 0 | H56: x %
B57: 5 | G57: =SUM(C57:F57) -> 0 | H57: x %
A58: Overall Availability, mean avg. of all lines, hrs | C58: 2154 | D58: 1828 | E58: 1706 | F58: 2200 | G58: =AVERAGE(G53:G57) -> 3155 | H58: 0.9015
A59: Hours of turbine operations, hrs | B59: 1 | G59: 0 | H59: x %
A60: Hours of turbine operations, hrs | B60: 2 | G60: 0 | H60: x %
A61: Hours of heat / steam export | C61: 4308 | D61: 3655 | E61: 3412 | F61: 4400 | G61: 15775 | H61: =IF(B61>0,G60/J53,"n/a") -> n/a
A62: Net Calorific Value of waste | B62: MJ/kg | C62: 7.8 | D62: 9.1 | E62: 8.9 | F62: 8.8 | H62: -
A63: Abnormal Events | B63: qty. | G63: 0 | H63: =IF(G63>0,"yes","no") -> no
A64: Abnormal operation | B64: hours | G64: 0 | H64: =+(G64)/J53 -> 0
A65: Permit Breaches | B65: qty. | C65: 1 | G65: 1 | H65: =IF(G65>0,"yes","no") -> yes

Sheet Operational Summary
A1: =+'Cover Page'!$B$29 -> Annual Performance Report 2021 | E1: =+'Cover Page'!$B$33 -> Eastcroft Energy from Waste Plant
A3: Summary of Plant Operations and Maintenance during the reporting year | K3: Notes:
A5: During 2021 the facility ran for 17,775 hours across the 2 lines representing an availability of 90.15% with 186,003 tonnes delivered to site compared to a permit limit of 200,000 tonnes per annum. Nearly all of this waste was delivered by the local authorities of Nottingham and the surrounding area and most other wastes being categorised as municipal (Chapter 20 of the List of Wastes Regulations). The facility submitted 1 schedule notification during the year for a half hourly value for Total Organic Carbon of 45.4 mg/m3. No periods of abnormal operation or substantiated complaints were received. The plant provided 391 GWh of energy in the form of steam and hot water to the Nottingham City Council (formerly EnviroEnergy) facility who operate a combined heat and power station, providing electricity to private customers, the national grid and providing heating to households and commercial premises through their district heating system. Eastcroft receives all electrical supply and water for the process from the Nottingham City Council facility. The main period of downtime related to a planned maintenance period within where both routine maintenance that cannot be undertaken while the plant is operational took place and some major replacements to boiler parts were also undertaken. Further modifications and optimisation to the combustion and other processes were undertaken throughout the year. | K5: Include summary of key operational and/or mainteanance activity undertaken in the year, such as any major component upgrades and/or replacements
A29: Summary of Residue Handling for the reporting year
A31: Incinerator Bottom Ash (IBA) is sampled 4 times per year for permit compliance purposes, in particular for Total Organic Content where the permit has a limit of 3%. Full compliance was achieved during 2021; no values were above 3% with an average value of 1.2% achieved. Additional testing of IBA is undertaken in order to correctly classify the IBA. 24 samples (2 per month) were taken in 2021 to assess for any hazardous content within the IBA. During 2021 all 24 sample results were returned confirming the classification of the IBA as non-hazardous. All metals within the IBA are sent along with the non-hazardous IBA to a third party company who operate a permitted facility dedicated to management of bottom ash. Metals are segregated and sent for recycling while the remaining incinerator bottom ash is used as a substitute aggregate material for use within the construction industry. Air Pollution Control Residues (APCr) formed from the cleaning of the flue gases are also analysed on a quarterly basis, albeit with no limits set within the permit. The APCr is tankered to a permitted treatment site where the material is used to neutralise highly acidic wastes before the resulting residue is sent for disposal. | K31: Include in here a summary of residue handling regimes and destinations

Sheet Perf. Form 1
A1: =+'Cover Page'!C39 -> 2021 | B1: Annual Reporting Performance Form 1
A3: =+'Cover Page'!B31 -> Permit EPR/EP3034SN | F3: Operator: | G3: =+'Cover Page'!B37 -> WasteNotts (Reclamation) Limited
A4: Facility: | B4: =+'Cover Page'!B33:I33 -> Eastcroft Energy from Waste Plant | F4: Form: | G4: Performance 1
A6: Reporting Period from: | D6: 2021-01-01 | F6: to: | G6: 2021-12-31
A8: =+A1 -> 2021 | B8: Annual Reporting of Waste Disposal and Recovery
A9: Waste Description | C9: Disposal Route(s) | E9: Disposal Tonnes | G9: Recovery Tonnes | I9: % / tonne of waste incinerated
A10: 1) Hazardous Wastes
A11: APC Residues | C11: D13 | E11: 4227.1 | I11: =IF((E11+G11)>0,(E11+G11)/'Operational Data'!$G$21, "-") -> 0.02272592134
A12: IBA | I12: =IF((E12+G12)>0,(E12+G12)/'Operational Data'!$G$21, "-") -> -
I13: =IF((E13+G13)>0,(E13+G13)/'Operational Data'!$G$21, "-") -> -
I14: =IF((E14+G14)>0,(E14+G14)/'Operational Data'!$G$21, "-") -> -
A15: Total Hazardous Waste | E15: =SUM(E11:F14) -> 4227.1 | G15: =SUM(G11:H14) -> 0 | I15: =IF((E15+G15)>0,(E15+G15)/'Operational Data'!$G$21, "-") -> 0.02272592134
A17: 2) Non-Hazardous Wastes
A18: IBA | C18: R05 | G18: 36421.55 | I18: =IF((E18+G18)>0,(E18+G18)/'Operational Data'!$G$21, "-") -> 0.1958111424
A19: Ferrous Metal | I19: =IF((E19+G19)>0,(E19+G19)/'Operational Data'!$G$21, "-") -> -
A20: Process Water | I20: =IF((E20+G20)>0,(E20+G20)/'Operational Data'!$G$21, "-") -> -
I21: =IF((E21+G21)>0,(E21+G21)/'Operational Data'!$G$21, "-") -> -
I22: =IF((E22+G22)>0,(E22+G22)/'Operational Data'!$G$21, "-") -> -
A23: Total Non-Hazardous Waste | E23: =SUM(E18:F22) -> 0 | G23: =SUM(G18:H22) -> 36421.55 | I23: =IF((E23+G23)>0,(E23+G23)/'Operational Data'!$G$21, "-") -> 0.1958111424
A24: TOTAL WASTE | E24: =+E23+E15 -> 4227.1 | G24: =+G23+G15 -> 36421.55 | I24: =IF((E24+G24)>0,(E24+G24)/'Operational Data'!$G$21, "-") -> 0.2185370638
A26: Operator’s comments :
A31: =+A1 -> 2021 | B31: Annual Reporting of Water and Other Raw Material Usage
A32: Raw Material | E32: Usage | G32: Unit | H32: Specific Useage | J32: Unit
A33: Mains Water | E33: =+'Operational Data'!G42 -> 4507 | G33: m3 | H33: =IF(E33>0,E33/'Operational Data'!$G$21,"-") -> 0.02423073205 | J33: m3/te
A34: Total Water | E34: =+'Operational Data'!G43+'Operational Data'!G42 -> 4507 | G34: m3 | H34: =IF(E34>0,E34/'Operational Data'!$G$21,"-") -> 0.02423073205 | J34: m3/te
A35: Urea / Ammonia | E35: =+'Operational Data'!G44 -> 515000 | G35: kg | H35: =IF(E35>0,E35/'Operational Data'!$G$21,"-") -> 2.768765699 | J35: kg/te
A36: Activated Carbon | E36: =+'Operational Data'!G46 -> 105120 | G36: kg | H36: =IF(E36>0,E36/'Operational Data'!$G$21,"-") -> 0.5651507773 | J36: kg/te
A37: Lime / hydrated lime / Sodium Bicarb. | E37: =+'Operational Data'!G47 -> 608161 | G37: kg | H37: =IF(E37>0,E37/'Operational Data'!$G$21,"-") -> 3.269621974 | J37: kg/te
A39: Operator’s comments :
A43: =+A31 -> 2021 | B43: Annual Reporting of other performance indicators
A44: Parameter | C44: Results by Line
C45: A1 | D45: A2 | E45: A3 | F45: A4 | G45: A5 | I45: Turbine 1 | J45: Turbine 2
A46: Operating hours for the year, hours | C46: 7802 | D46: 7973
A47: Number of periods of abnormal operation, qty.
A48: Cumulative hours of abnormal operation for this year, hours
A50: Operator’s comments :
A54: Signed: | G54: Date:

Sheet Energy Form 1
A1: =+'Cover Page'!C39 -> 2021 | B1: Annual Reporting of Energy Usage/Export
A3: =+'Cover Page'!B31 -> Permit EPR/EP3034SN | F3: Operator: | G3: =+'Cover Page'!B37 -> WasteNotts (Reclamation) Limited
A5: Facility: | B5: =+'Cover Page'!B33:I33 -> Eastcroft Energy from Waste Plant | F5: Form: | G5: Energy 1
A7: Reporting Period from: | D7: =+'Perf. Form 1'!D6:E6 -> 2021-01-01 | F7: to: | G7: =+'Perf. Form 1'!G6:H6 -> 2021-12-31
A9: Energy Source | D9: Energy Usage | F9: Unit | G9: Specific Useage (KWh/tonne incinerated
A10: Electricity Produced | D10: =+'Operational Data'!G24 -> 0 | F10: MWh | G10: =+'Operational Data'!H24 -> -
A11: Electricity Imported | D11: =+'Operational Data'!G27 -> 9596 | F11: MWh | G11: =+'Operational Data'!H27 -> 51.59043816
A12: Electricity Exported | D12: =+'Operational Data'!G25 -> 0 | F12: MWh | G12: =+'Operational Data'!H25 -> -
A13: Gas Oil | D13: 66.4 | F13: tonnes
A14: Steam/hot water exported | D14: =+'Operational Data'!G30 -> 390860 | F14: GWh | G14: =+'Operational Data'!H30 -> 2101.35876
A18: Operator’s comments :
A19: Eastcroft sends steam to a third party who operate a combined heat and power facility and thus no electricity generation is provided from Eastcroft in the returns and all electricity is imported from the combined heat and power station operators (EnviroEnergy).
A29: Signed: | G29: Date:

Sheet Permit Compliance
A1: =+'Cover Page'!$B$29 -> Annual Performance Report 2021 | E1: =+'Cover Page'!$B$33 -> Eastcroft Energy from Waste Plant
A3: Summary of Permit Compliance
A5: Compliance with permit limits for continuously monitored pollutants
A7: The plant met its emission limits as shown in the table below:
A8: Substance | C8: Percentage time compliant during operation | L8: Notes:
C9: Half-hourly limit | F9: Daily limit | L9: Report to 2 decimal places, i.e. xx.xx% Please provide a brief summary of each notification or non-compliance in the table (rather than just referring to notifications that were sent to the Regulator).
A10: Particulates | C10: 1 | F10: 1
A11: Oxides of nitrogen | C11: 1 | F11: 1
A12: Sulphur dioxide | C12: 1 | F12: 1
A13: Carbon monoxide | C13: 100.00% 95% of 10-min averages | F13: 1
A14: Total organic carbon | C14: 0.9999 | F14: 1
A15: Hydrogen chloride | C15: 1 | F15: 1
A16: Hydrogen fluoride | C16: 1 | F16: 1
C17: xx.xx % | F17: xx.xx %
A19: Summary of any notifications or non-compliances under the permit
A20: Date | B20: Summary of notification or non-compliance [including Line/Reference] | E20: Reason | H20: Measures taken to prevent reoccurrence
A21: 2021-03-18 | B21: Line 2 half hourly TOC value of 45.4 against limit of 20 | E21: Substance within waste | H21: Communication with waste suppliers
A27: Summary of any complaints received and actions to taken to resolve them.
A28: Date | B28: Summary of complaint [including Line/Reference] | E28: Reason * | H28: Measures taken to prevent reoccurrence
A29: 2021-08-11 | B29: Odour Complaint | E29: Unsubstantiated - source not relating to site operations | H29: N/A
E34: * including whether substantiated by the operator or the EA

Sheet Improvements
A1: =+'Cover Page'!$B$29 -> Annual Performance Report 2021 | E1: =+'Cover Page'!$B$33 -> Eastcroft Energy from Waste Plant
A3: Summary of Plant Improvements
A5: Summary of any efficiency improvements that have been completed within the year.
A6: Work to optimise the combustion control system and reagent dosing systems continued throughout 2021 along with routine maintenance as per the sites maintenance schedule. Works to improve energy efficiency by replacing lighting with LED units began and will continue into 2022.
A16: Summary of any permit improvement conditions that have been completed within the year and the resulting environmental benefits.
A17: All improvement conditions relating to the existing facility have been completed in advance of 2021. improvement conditions remain within the current permit, these relate to the potential expansion of the facility and the addition of a third line. These conditions cannot be progress further until plans for the development of a third line have been concluded.
A27: Summary of any changes to the plant or operating techniques which required a variation to the permit and a summary of the resulting environmental impact.
A28: No changes have been undertaken that require a permit variation. Over the next year as part of the BREF implementation process there will be variations required to update the permit to incorporate the latest requirements of the Waste Incineration BREF.
A38: Summary of any other improvements made to the plant or planned to be made and a summary of the resulting environmental benefits.
A39: Plans continue to develop a third line for the facility to divert further waste from landfill. Other modifications to the control systems for the plant will be undertaken to ensure compliance can continue to be achieved with the implementation of the revised Waste Incineration BREF and the lower emission limit values this will introduce.

Sheet Public Liasion
A1: =+'Cover Page'!$B$29 -> Annual Performance Report 2021 | E1: =+'Cover Page'!$B$33 -> Eastcroft Energy from Waste Plant
A3: Details of Public & Stakeholder Liasion
A5: Summary of events held during the reporting year.
A6: Date | C6: Description
A7: 2021-10-06 | C7: Community Liaison Group Meeting
A9: 2021 | C9: Other planned meetings suspended due to COVID19
A16: List of events planned for next year
A17: Date | C17: Description
A18: 2022-04-01 | C18: Planned meeting for January 2022 rescheduled to April due to COVID19
A29: If you wish to be involved in the public liasion programme, please contact info.eastcroft@fccenvironment.co.uk 0115 9869505 or visit https://eastcroft.fccenvironment.co.uk/contact-us/

Sheet Residue Quality
A1: =+'Cover Page'!$B$29 -> Annual Performance Report 2021 | E1: =+'Cover Page'!$B$33 -> Eastcroft Energy from Waste Plant
A3: Residue Quality Monitoring Requirements
A5: Summary of monitoring undertaken and compliance
A6: Monitoring of residues for permit compliance was undertaken with full compliance to the residue limit recorded. No specific events were recorded during 2021.
A8: 24 samples taken and analysed as per the ESA protocol were returned demonstrating that the Incinerator Bottom Ash should be classified as non-hazardous.
A13: Commentary on any specific events
A14: Date & Event | C14: Description
A27: Residue Quality Monitoring Results
A28: Parameter (unit) | C28: Limit | D28: Normal Operation
D29: Bottom ash | F29: APC Residues
A30: Loss on Ignition (average %) | C30: <5% | D30: N/A
A31: Total Organic Carbon (average %) | C31: <3% | D31: 1.24
A32: No. of Assessments Undertaken | C32: --- | D32: 24 | F32: 4
A33: No. of Hazardous Results | C33: --- | D33: 0
A35: Comments :
A36: NB. 24 results relate to assessment against the WM3 criteria, 4 assessments were undertaken for compliance purposes.

Sheet Air (periodic)
A1: =+'Cover Page'!$B$29 -> Annual Performance Report 2021 | E1: =+'Cover Page'!$B$33 -> Eastcroft Energy from Waste Plant
A3: Emissions to Air (periodically monitored)
A5: Summary of monitoring undertaken, standards used and compliance | M5: Notes:
M6: Template may require adjustment for any bespoke monitoring requirements of permit.
A9: Results of emissions to air that are periodically monitored
A10: Substance | C10: Ref. Period | D10: Emission Limit Value | F10: Average | M10: User to add additional tables as necessary, depending on whether quarterly or bi-annual reporting is required for the compliance year
F11: A1 | G11: A2 | H11: A3 | I11: A4 | J11: A5
A12: Hydrogen fluoride | C12: 1 hr | D12: 2 mg/m3 | F12: 0.21 | G12: 0.16
A13: Cd and Th and their compounds | C13: 6-8hrs | D13: 0.05 mg/m3 | F13: 0.0009 | G13: 0.0006
A14: Hg and its compounds | C14: 6-8hrs | D14: 0.05 mg/m3 | F14: 0.00025 | G14: 0.0005
A15: Sb, As, Pb, Cr, Co, Cu, Mn, Ni, V and their compounds | C15: 6-8hrs | D15: 0.5 mg/m3 | F15: 0.028 | G15: 0.015
A16: Dioxins & Furans (I-TEQ) | C16: 6-8hrs | D16: 0.1 ng/m3 | F16: 0.0007 | G16: 0.001
A17: PCBs (WHO-TEQ Humans / Mammals) | C17: 6-8hrs | D17: None set ng/m3 | F17: 5e-05 | G17: 6e-05
A18: PCBs (WHO-TEQ Fish) | C18: 6-8hrs | D18: None set ng/m3 | F18: 3.5e-05 | G18: 6e-06
A19: PCBs (WHO-TEQ Birds) | C19: 6-8hrs | D19: None set ng/m3 | F19: 0.0003 | G19: 0.0004
A20: Dioxins & Furans (WHO-TEQ Humans / Mammals) | C20: 6-8hrs | D20: None set ng/m3 | F20: 0.0009 | G20: 0.0009
A21: Dioxins & Furans (WHO-TEQ Fish) | C21: 6-8hrs | D21: None set ng/m3 | F21: 0.0007 | G21: 0.001
A22: Dioxins & Furans (WHO-TEQ Birds) | C22: 6-8hrs | D22: None set ng/m3 | F22: 0.0008 | G22: 0.0017
A23: Anthanthrene | C23: 6-8hrs | D23: None set µg/m3 | F23: <0.0017 | G23: <0.0017
A24: Benzo(a)anthracene | C24: 6-8hrs | D24: None set µg/m3 | F24: <0.0017 | G24: 0.003
A25: Benzo(a)pyrene | C25: 6-8hrs | D25: None set µg/m3 | F25: 0.004 | G25: <0.0017
A26: Benzo(b)fluoranthene | C26: 6-8hrs | D26: None set µg/m3 | F26: 0.0055 | G26: 0.001
A27: Benzo(b)naptho(2,1-d) thiophene | C27: 6-8hrs | D27: None set µg/m3 | F27: 0.0025 | G27: 0.0019
A28: Benzo(c)phenanthrene | C28: 6-8hrs | D28: None set µg/m3 | F28: <0.0017 | G28: <0.0017
A29: Benzo(ghi)perylene | C29: 6-8hrs | D29: None set µg/m3 | F29: 0.0037 | G29: 0.0059
A30: Benzo(k)fluoranthene | C30: 6-8hrs | D30: None set µg/m3 | F30: <0.0017 | G30: 0.0019
A31: Cholanthrene | C31: 6-8hrs | D31: None set µg/m3 | F31: <0.0017 | G31: <0.0017
A32: Chrysene | C32: 6-8hrs | D32: None set µg/m3 | F32: 0.0059 | G32: 0.025
A33: Cyclopenta(cd)pyrene | C33: 6-8hrs | D33: None set µg/m3 | F33: 0.0059 | G33: 0.0044
A34: Dibenzo(ai)pyrene | C34: 6-8hrs | D34: None set µg/m3 | F34: <0.0018 | G34: <0.0017
A35: Dibenzo(ah)anthracene | C35: 6-8hrs | D35: None set µg/m3 | F35: <0.0017 | G35: <0.0017
A36: Fluoranthene | C36: 6-8hrs | D36: None set µg/m3 | F36: 0.09 | G36: 0.065
A37: Indeno(123-cd) pyrene | C37: 6-8hrs | D37: None set µg/m3 | F37: 0.0019 | G37: 0.0034
A38: Naphthalene | C38: 6-8hrs | D38: None set µg/m3 | F38: 0.16 | G38: 0.145
A39: Comments :

Sheet Air (CEMS)
A1: =+'Cover Page'!$B$29 -> Annual Performance Report 2021 | I1: =+'Cover Page'!$B$33 -> Eastcroft Energy from Waste Plant
A3: Emissions to Air (continously monitored)
P4: Notes:
A5: Summary of monitoring undertaken, standards used and compliance | P5: Template may require adjustment for any bespoke monitoring requirements of permit
P6: Report to 2 decimal places, i.e. xx.xx%
A11: Results of emissions to air that are continuously monitored (maximum and average values for each line)
A12: Substance | B12: Reference Period | C12: Emission Limit Value | D12: A1 | F12: A2 | H12: A3 | J12: A4 | L12: A5
D13: Max. | E13: Avg. | F13: Max. | G13: Avg. | H13: Max. | I13: Avg. | J13: Max. | K13: Avg. | L13: Max. | M13: Avg.
A14: Oxides of nitrogen | B14: Daily mean | C14: 200 mg/m3 | D14: 178.3 | E14: 158 | F14: 182.9 | G14: 154.35
B15: ½ hourly mean | C15: 400 mg/m3 | D15: 253.5 | E15: 157 | F15: 293.2 | G15: 154.43
A16: Particulates | B16: Daily mean | C16: 10 mg/m3 | D16: 1.6 | E16: 0.36 | F16: 2 | G16: 0.38
B17: ½ hourly mean | C17: 30 mg/m3 | D17: 5.9 | E17: 0.41 | F17: 13.1 | G17: 0.44
A18: Total Organic Carbon | B18: Daily mean | C18: 10 mg/m3 | D18: 1.3 | E18: 0.59 | F18: 1.3 | G18: 0.59
B19: ½ hourly mean | C19: 20 mg/m3 | D19: 18.5 | E19: 0.64 | F19: 18.5 | G19: 0.46
A20: Hydrogen chloride | B20: Daily mean | C20: 10 mg/m3 | D20: 6.4 | E20: 3.47 | F20: 6.9 | G20: 3.69
B21: ½ hourly mean | C21: 60 mg/m3 | D21: 33.1 | E21: 3.52 | F21: 29.9 | G21: 3.74
A22: Sulphur dioxide | B22: Daily mean | C22: 50 mg/m3 | D22: 32.5 | E22: 15.31 | F22: 37.2 | G22: 13.53
B23: ½ hourly mean | C23: 200 mg/m3 | D23: 87 | E23: 15.39 | F23: 104.9 | G23: 13.62
A24: Carbon monoxide | B24: Daily mean | C24: 50 mg/m3 | D24: 17.3 | E24: 7.99 | F24: 15.4 | G24: 7.2
B25: 95%ile 10-min avg | C25: 150 mg/m3 | D25: 39.3 | E25: 8.01 | F25: 36.4 | G25: 8.08
A26: Ammonia | B26: Daily mean | C26: No limit set | D26: 6 | E26: 0.97 | F26: 26.5 | G26: 1.1
A27: * = delete or amend as appropriate
A28: Comments :

Sheet HCl
A1: =+'Cover Page'!$B$29 -> Annual Performance Report 2021 | E1: =+'Cover Page'!$B$33 -> Eastcroft Energy from Waste Plant
A3: Monitoring of Hydrogen Chloride emissions | D3: Whole Installation | G3: See Notes in Cell Q3 | J3: =+A3 -> Monitoring of Hydrogen Chloride emissions | N3: Per Combustion Line | Q3: Notes:
Q4: User to add logic to complete Whole installation, Table A5:G18. From the data in Per Combustion Line, Table J6:O79, subject to No. of lines installed
A5: mg/Nm3 | B5: 1/2 Hourly Reference Periods | E5: Daily Reference Periods
A6: =+'Cover Page'!C39 -> 2021 | B6: 1/2 hourly HCl ELV | C6: Monthly 1/2 hourly mean | D6: Highest 1/2 hourly maximum | E6: Daily HCl ELV | F6: Monthly daily mean | G6: Highest daily maximum | J6: =+A6 -> 2021 | K6: mg/Nm3 | L6: Monthly 1/2 hourly mean | M6: Monthly 1/2 hourly maximum | N6: Monthly daily mean | O6: Monthly daily maximum
A7: Jan | B7: 60 | C7: =(L7+L22)/2 -> 2.5 | D7: 4.6 | E7: 10 | F7: =(N7+N22)/2 -> 2.45 | G7: 3.3 | J7: A1 | K7: Jan | L7: 2.6 | M7: 4 | N7: 2.6 | O7: 3.3
A8: Feb | B8: 60 | C8: =(L8+L23)/2 -> 1.9 | D8: 33.1 | E8: 10 | F8: =(N8+N23)/2 -> 1.9 | G8: 2.7 | K8: Feb | L8: 1.9 | M8: 33.1 | N8: 1.9 | O8: 2.7
A9: Mar | B9: 60 | C9: 3.05 | D9: 29.9 | E9: 10 | F9: 3.05 | G9: 3.6 | K9: Mar | L9: 3.2 | M9: 6.7 | N9: 3.2 | O9: 3.6 | Q9: Whole Installation table A5:G18:
A10: Apr | B10: 60 | C10: 3.35 | D10: 6.9 | E10: 10 | F10: 3.25 | G10: 3.7 | K10: Apr | L10: 3.5 | M10: 6.9 | N10: 3.4 | O10: 3.7 | Q10: Mean: for 1/2 hourly and daily periods calculate mean of values across all operational combustion lines for the month
A11: May | B11: 60 | C11: 3.25 | D11: 6.2 | E11: 10 | F11: 3.2 | G11: 3.6 | K11: May | L11: 3.3 | M11: 6.2 | N11: 3.3 | O11: 3.6
A12: Jun | B12: 60 | C12: 3.25 | D12: 6.4 | E12: 10 | F12: 3.15 | G12: 3.6 | K12: Jun | L12: 3.4 | M12: 4.5 | N12: 3.3 | O12: 3.6
A13: Jul | B13: 60 | C13: 3.05 | D13: 7.6 | E13: 10 | F13: 2.95 | G13: 4.5 | K13: Jul | L13: 2.3 | M13: 3.5 | N13: 2.1 | O13: 2.7 | Q13: Maximum: for 1/2 hourly and daily periods use the highest value across all operational combustion lines for the month
A14: Aug | B14: 60 | C14: 3.95 | D14: 8.2 | E14: 10 | F14: 3.9 | G14: 4.6 | K14: Aug | L14: 4.2 | M14: 8 | N14: 4.1 | O14: 4.6
A15: Sep | B15: 60 | C15: 4.7 | D15: 13.9 | E15: 10 | F15: 4.65 | G15: 6.9 | K15: Sep | L15: 4.7 | M15: 13.9 | N15: 4.7 | O15: 6.4
A16: Oct | B16: 60 | C16: 5.25 | D16: 26.2 | E16: 10 | F16: 5.15 | G16: 6.9 | K16: Oct | L16: 4.5 | M16: 12.2 | N16: 4.4 | O16: 5
A17: Nov | B17: 60 | C17: 4.8 | D17: 14.3 | E17: 10 | F17: 4.8 | G17: 6 | K17: Nov | L17: 4.4 | M17: 6.6 | N17: 4.4 | O17: 5.1
A18: Dec | B18: 60 | C18: 4.5 | D18: 7.3 | E18: 10 | F18: 4.5 | G18: 5.6 | K18: Dec | L18: 4.2 | M18: 7 | N18: 4.2 | O18: 5
K19: Annual | L19: =AVERAGE(L7:L18) -> 3.516666667 | M19: =MAX(M7:M18) -> 33.1 | N19: =AVERAGE(N7:N18) -> 3.466666667 | O19: =MAX(O7:O18) -> 6.4
J21: =+A6 -> 2021 | K21: mg/Nm3 | L21: Monthly 1/2 hourly mean | M21: Monthly 1/2 hourly maximum | N21: Monthly daily mean | O21: Monthly daily maximum
J22: A2 | K22: Jan | L22: 2.4 | M22: 4.6 | N22: 2.3 | O22: 3
K23: Feb | L23: 1.9 | M23: 5 | N23: 1.9 | O23: 2.7
K24: Mar | L24: 2.9 | M24: 29.9 | N24: 2.9 | O24: 3.3
K25: Apr | L25: 3.2 | M25: 5.8 | N25: 3.1 | O25: 3.4
K26: May | L26: 3.2 | M26: 6.2 | N26: 3.1 | O26: 3.4
K27: Jun | L27: 3.1 | M27: 6.4 | N27: 3 | O27: 3.2
K28: Jul | L28: 3.8 | M28: 7.6 | N28: 3.8 | O28: 4.5
K29: Aug | L29: 3.7 | M29: 8.2 | N29: 3.7 | O29: 4.4
K30: Sep | L30: 4.7 | M30: 10.7 | N30: 4.6 | O30: 6.9
K31: Oct | L31: 6 | M31: 26.2 | N31: 5.9 | O31: 6.9
K32: Nov | L32: 5.2 | M32: 14.3 | N32: 5.2 | O32: 6
K33: Dec | L33: 4.8 | M33: 7.3 | N33: 4.8 | O33: 5.6
K34: Annual | L34: =AVERAGE(L22:L33) -> 3.741666667 | M34: =MAX(M22:M33) -> 29.9 | N34: =AVERAGE(N22:N33) -> 3.691666667 | O34: =MAX(O22:O33) -> 6.9
J36: =+A6 -> 2021 | K36: mg/Nm3 | L36: Monthly 1/2 hourly mean | M36: Monthly 1/2 hourly maximum | N36: Monthly daily mean | O36: Monthly daily maximum
J37: A3 | K37: Jan
K38: Feb
K39: Mar
K40: Apr
K41: May
K42: Jun
K43: Jul
K44: Aug
K45: Sep
K46: Oct
K47: Nov
A48: Comments : | K48: Dec
K49: Annual | L49: =AVERAGE(L37:L48) ->  | M49: =MAX(M37:M48) -> 0 | N49: =AVERAGE(N37:N48) ->  | O49: =MAX(O37:O48) -> 0
J51: =+A6 -> 2021 | K51: mg/Nm3 | L51: Monthly 1/2 hourly mean | M51: Monthly 1/2 hourly maximum | N51: Monthly daily mean | O51: Monthly daily maximum
J52: A4 | K52: Jan
K53: Feb
K54: Mar
K55: Apr
K56: May
K57: Jun
K58: Jul
K59: Aug
K60: Sep
K61: Oct
K62: Nov
K63: Dec
K64: Annual | L64: =AVERAGE(L52:L63) ->  | M64: =MAX(M52:M63) -> 0 | N64: =AVERAGE(N52:N63) ->  | O64: =MAX(O52:O63) -> 0
J66: =+A6 -> 2021 | K66: mg/Nm3 | L66: Monthly 1/2 hourly mean | M66: Monthly 1/2 hourly maximum | N66: Monthly daily mean | O66: Monthly daily maximum
J67: A5 | K67: Jan
K68: Feb
K69: Mar
K70: Apr
K71: May
K72: Jun
K73: Jul
K74: Aug
K75: Sep
K76: Oct
K77: Nov
K78: Dec
K79: Annual | L79: =AVERAGE(L67:L78) ->  | M79: =MAX(M67:M78) -> 0 | N79: =AVERAGE(N67:N78) ->  | O79: =MAX(O67:O78) -> 0

Sheet SO2
A1: =+'Cover Page'!$B$29 -> Annual Performance Report 2021 | E1: =+'Cover Page'!$B$33 -> Eastcroft Energy from Waste Plant
A3: Monitoring of Sulphur dioxide emissions | D3: Whole Installation | G3: See Notes in Cell Q3 | J3: =+A3 -> Monitoring of Sulphur dioxide emissions | N3: Per Combustion Line | Q3: Notes:
Q4: User to add logic to complete Whole installation, Table A5:G18. From the data in Per Combustion Line, Table J6:O79, subject to No. of lines installed
A5: mg/Nm3 | B5: 1/2 Hourly Reference Periods | E5: Daily Reference Periods
A6: =+'Cover Page'!C39 -> 2021 | B6: 1/2 hourly SO2 ELV | C6: Monthly 1/2 hourly mean | D6: Highest 1/2 hourly maximum | E6: Daily SO2 ELV | F6: Monthly daily mean | G6: Highest daily maximum | J6: =+A6 -> 2021 | K6: mg/Nm3 | L6: Monthly 1/2 hourly mean | M6: Monthly 1/2 hourly maximum | N6: Monthly daily mean | O6: Monthly daily maximum
A7: Jan | B7: 200 | C7: =(L7+L22)/2 -> 10.7 | D7: 56.2 | E7: 50 | F7: =(N7+N22)/2 -> 10.7 | G7: 21.3 | J7: A1 | K7: Jan | L7: 12.7 | M7: 56.2 | N7: 12.7 | O7: 21.3
A8: Feb | B8: 200 | C8: =(L8+L23)/2 -> 19.85 | D8: 87 | E8: 50 | F8: =(N8+N23)/2 -> 19.8 | G8: 31.2 | K8: Feb | L8: 21.6 | M8: 87 | N8: 21.6 | O8: 31.2
A9: Mar | B9: 200 | C9: 16.05 | D9: 51 | E9: 50 | F9: 16.05 | G9: =MAX(O9,O24) -> 23.4 | K9: Mar | L9: 17.1 | M9: 51 | N9: 17.1 | O9: 23.4 | Q9: Whole Installation table A5:G18:
A10: Apr | B10: 200 | C10: 11.4 | D10: 43.4 | E10: 50 | F10: 11.4 | G10: =MAX(O10,O25) -> 17.3 | K10: Apr | L10: 11.2 | M10: 32.3 | N10: 11.2 | O10: 15.5 | Q10: Mean: for 1/2 hourly and daily periods calculate mean of values across all operational combustion lines for the month
A11: May | B11: 200 | C11: 11.4 | D11: 68.8 | E11: 50 | F11: 11.4 | G11: 20.1 | K11: May | L11: 10.8 | M11: 68.8 | N11: 10.8 | O11: 14.6
A12: Jun | B12: 200 | C12: 10.35 | D12: 32.2 | E12: 50 | F12: 10.25 | G12: 15.3 | K12: Jun | L12: 10.8 | M12: 32.2 | N12: 10.7 | O12: 15.3
A13: Jul | B13: 200 | C13: 22.75 | D13: 54.4 | E13: 50 | F13: 22.25 | G13: 37.2 | K13: Jul | L13: 27.2 | M13: 54.4 | N13: 26.9 | O13: 32.5 | Q13: Maximum: for 1/2 hourly and daily periods use the highest value across all operational combustion lines for the month
A14: Aug | B14: 200 | C14: 13 | D14: 99.2 | E14: 50 | F14: 12.95 | G14: 21.1 | K14: Aug | L14: 16.2 | M14: 38.5 | N14: 16.2 | O14: 21.1
A15: Sep | B15: 200 | C15: 12.3 | D15: 27.6 | E15: 50 | F15: 12.25 | G15: 16.7 | K15: Sep | L15: 13.6 | M15: 27.6 | N15: 13.5 | O15: 16.7
A16: Oct | B16: 200 | C16: 13.65 | D16: 43.8 | E16: 50 | F16: 13.6 | G16: 18.3 | K16: Oct | L16: 12 | M16: 43.8 | N16: 12 | O16: 17.8
A17: Nov | B17: 200 | C17: 16.35 | D17: 49.3 | E17: 50 | F17: 16.35 | G17: 23.9 | K17: Nov | L17: 15.7 | M17: 38.6 | N17: 15.7 | O17: 22.8
A18: Dec | B18: 200 | C18: 16.05 | D18: 104.9 | E18: 50 | F18: 16 | G18: 23.1 | K18: Dec | L18: 15.4 | M18: 64.3 | N18: 15.3 | O18: 18.6
K19: Annual | L19: =AVERAGE(L7:L18) -> 15.35833333 | M19: =MAX(M7:M18) -> 87 | N19: =AVERAGE(N7:N18) -> 15.30833333 | O19: =MAX(O7:O18) -> 32.5
J21: =+A6 -> 2021 | K21: mg/Nm3 | L21: Monthly 1/2 hourly mean | M21: Monthly 1/2 hourly maximum | N21: Monthly daily mean | O21: Monthly daily maximum
J22: A2 | K22: Jan | L22: 8.7 | M22: 52 | N22: 8.7 | O22: 15.4
K23: Feb | L23: 18.1 | M23: 51.2 | N23: 18 | O23: 28.8
K24: Mar | L24: 15 | M24: 42.8 | N24: 15 | O24: 20.8
K25: Apr | L25: 11.6 | M25: 43.4 | N25: 11.6 | O25: 17.3
K26: May | L26: 12 | M26: 39.1 | N26: 12 | O26: 20.1
K27: Jun | L27: 9.9 | M27: 29.3 | N27: 9.8 | O27: 13.5
K28: Jul | L28: 18.3 | M28: 47.3 | N28: 17.6 | O28: 37.2
K29: Aug | L29: 9.8 | M29: 99.2 | N29: 9.7 | O29: 15.2
K30: Sep | L30: 11 | M30: 26.5 | N30: 11 | O30: 14.6
K31: Oct | L31: 15.3 | M31: 37.9 | N31: 15.2 | O31: 18.3
K32: Nov | L32: 17 | M32: 49.3 | N32: 17 | O32: 23.9
K33: Dec | L33: 16.7 | M33: 104.9 | N33: 16.7 | O33: 23.1
K34: Annual | L34: =AVERAGE(L22:L33) -> 13.61666667 | M34: =MAX(M22:M33) -> 104.9 | N34: =AVERAGE(N22:N33) -> 13.525 | O34: =MAX(O22:O33) -> 37.2
J36: =+A6 -> 2021 | K36: mg/Nm3 | L36: Monthly 1/2 hourly mean | M36: Monthly 1/2 hourly maximum | N36: Monthly daily mean | O36: Monthly daily maximum
J37: A3 | K37: Jan
K38: Feb
K39: Mar
K40: Apr
K41: May
K42: Jun
K43: Jul
K44: Aug
K45: Sep
K46: Oct
K47: Nov
A48: Comments : | K48: Dec
K49: Annual | L49: =AVERAGE(L37:L48) ->  | M49: =MAX(M37:M48) -> 0 | N49: =AVERAGE(N37:N48) ->  | O49: =MAX(O37:O48) -> 0
J51: =+A6 -> 2021 | K51: mg/Nm3 | L51: Monthly 1/2 hourly mean | M51: Monthly 1/2 hourly maximum | N51: Monthly daily mean | O51: Monthly daily maximum
J52: A4 | K52: Jan
K53: Feb
K54: Mar
K55: Apr
K56: May
K57: Jun
K58: Jul
K59: Aug
K60: Sep
K61: Oct
K62: Nov
K63: Dec
K64: Annual | L64: =AVERAGE(L52:L63) ->  | M64: =MAX(M52:M63) -> 0 | N64: =AVERAGE(N52:N63) ->  | O64: =MAX(O52:O63) -> 0
J66: =+A6 -> 2021 | K66: mg/Nm3 | L66: Monthly 1/2 hourly mean | M66: Monthly 1/2 hourly maximum | N66: Monthly daily mean | O66: Monthly daily maximum
J67: A5 | K67: Jan
K68: Feb
K69: Mar
K70: Apr
K71: May
K72: Jun
K73: Jul
K74: Aug
K75: Sep
K76: Oct
K77: Nov
K78: Dec
K79: Annual | L79: =AVERAGE(L67:L78) ->  | M79: =MAX(M67:M78) -> 0 | N79: =AVERAGE(N67:N78) ->  | O79: =MAX(O67:O78) -> 0

Sheet NOx
A1: =+'Cover Page'!$B$29 -> Annual Performance Report 2021 | E1: =+'Cover Page'!$B$33 -> Eastcroft Energy from Waste Plant
A3: Monitoring of Oxides of Nitrogen emissions | D3: Whole Installation | G3: See Notes in Cell Q3 | J3: =+A3 -> Monitoring of Oxides of Nitrogen emissions | N3: Per Combustion Line | Q3: Notes:
Q4: User to add logic to complete Whole installation, Table A5:G18. From the data in Per Combustion Line, Table J6:O79, subject to No. of lines installed
A5: mg/Nm3 | B5: 1/2 Hourly Reference Periods | E5: Daily Reference Periods
A6: =+'Cover Page'!C39 -> 2021 | B6: 1/2 hourly NOx ELV | C6: Monthly 1/2 hourly mean | D6: Highest 1/2 hourly maximum | E6: Daily NOx ELV | F6: Monthly daily mean | G6: Highest daily maximum | J6: =+A6 -> 2021 | K6: mg/Nm3 | L6: Monthly 1/2 hourly mean | M6: Monthly 1/2 hourly maximum | N6: Monthly daily mean | O6: Monthly daily maximum
A7: Jan | B7: 400 | C7: =(L7+L22)/2 -> 154.75 | D7: =MAX(M7,M22) -> 246.2 | E7: 200 | F7: =(N7+N22)/2 -> 154.75 | G7: =MAX(O7,O22) -> 169.8 | J7: A1 | K7: Jan | L7: 161.4 | M7: 246.2 | N7: 161.4 | O7: 169.8
A8: Feb | B8: 400 | C8: =(L8+L23)/2 -> 145.5 | D8: =MAX(M8,M23) -> 212.3 | E8: 200 | F8: =(N8+N23)/2 -> 145.4 | G8: =MAX(O8,O23) -> 171.2 | K8: Feb | L8: 147.3 | M8: 212.3 | N8: 147.2 | O8: 171.2
A9: Mar | B9: 400 | C9: 162.65 | D9: 244.4 | E9: 200 | F9: 162.6 | G9: 178.3 | K9: Mar | L9: 166.3 | M9: 244.4 | N9: 166.3 | O9: 178.3 | Q9: Whole Installation table A5:G18:
A10: Apr | B10: 400 | C10: 156.15 | D10: 212.7 | E10: 200 | F10: 156.15 | G10: 176.5 | K10: Apr | L10: 164.3 | M10: 212.7 | N10: 164.3 | O10: 176.5 | Q10: Mean: for 1/2 hourly and daily periods calculate mean of values across all operational combustion lines for the month
A11: May | B11: 400 | C11: 158.5 | D11: 239.3 | E11: 200 | F11: 158.4 | G11: 171.8 | K11: May | L11: 162.3 | M11: 239.3 | N11: 162.2 | O11: 171.8
A12: Jun | B12: 400 | C12: 163.5 | D12: 217.2 | E12: 200 | F12: 163.55 | G12: 175.9 | K12: Jun | L12: 164.2 | M12: 217.2 | N12: 164.4 | O12: 174.7
A13: Jul | B13: 400 | C13: 165.9 | D13: 293.2 | E13: 200 | F13: 165.65 | G13: 182.9 | K13: Jul | L13: 168.1 | M13: 253.5 | N13: 168.1 | O13: 174.2 | Q13: Maximum: for 1/2 hourly and daily periods use the highest value across all operational combustion lines for the month
A14: Aug | B14: 400 | C14: 155.2 | D14: 252.1 | E14: 200 | F14: 155.15 | G14: 171.1 | K14: Aug | L14: 152.4 | M14: 224.2 | N14: 152.4 | O14: 165
A15: Sep | B15: 400 | C15: 152.25 | D15: 224.2 | E15: 200 | F15: 152.35 | G15: 173.6 | K15: Sep | L15: 151.8 | M15: 224.2 | N15: 152 | O15: 173.6
A16: Oct | B16: 400 | C16: 157.75 | D16: 242.3 | E16: 200 | F16: 157.7 | G16: 169.7 | K16: Oct | L16: 155 | M16: 222.5 | N16: 155.1 | O16: 163.6
A17: Nov | B17: 400 | C17: 151.05 | D17: 211.8 | E17: 200 | F17: 151.05 | G17: 165.7 | K17: Nov | L17: 151.3 | M17: 211.8 | N17: 151.3 | O17: 162.9
A18: Dec | B18: 400 | C18: 150.65 | D18: 221.7 | E18: 200 | F18: 150.75 | G18: 179.4 | K18: Dec | L18: 150.1 | M18: 221.7 | N18: 150.1 | O18: 159.2
K19: Annual | L19: =AVERAGE(L7:L18) -> 157.875 | M19: =MAX(M7:M18) -> 253.5 | N19: =AVERAGE(N7:N18) -> 157.9 | O19: =MAX(O7:O18) -> 178.3
J21: =+A6 -> 2021 | K21: mg/Nm3 | L21: Monthly 1/2 hourly mean | M21: Monthly 1/2 hourly maximum | N21: Monthly daily mean | O21: Monthly daily maximum
J22: A2 | K22: Jan | L22: 148.1 | M22: 219.8 | N22: 148.1 | O22: 160.7
K23: Feb | L23: 143.7 | M23: 204.6 | N23: 143.6 | O23: 154.4
K24: Mar | L24: 159 | M24: 214.7 | N24: 158.9 | O24: 173.5
K25: Apr | L25: 148 | M25: 191.5 | N25: 148 | O25: 165.9
K26: May | L26: 154.7 | M26: 211.1 | N26: 154.6 | O26: 165
K27: Jun | L27: 162.8 | M27: 217 | N27: 162.7 | O27: 175.9
K28: Jul | L28: 163.7 | M28: 293.2 | N28: 163.2 | O28: 182.9
K29: Aug | L29: 158 | M29: 252.1 | N29: 157.9 | O29: 171.1
K30: Sep | L30: 152.7 | M30: 203.2 | N30: 152.7 | O30: 167
K31: Oct | L31: 160.5 | M31: 242.3 | N31: 160.3 | O31: 169.7
K32: Nov | L32: 150.8 | M32: 207 | N32: 150.8 | O32: 165.7
K33: Dec | L33: 151.2 | M33: 216.9 | N33: 151.4 | O33: 179.4
K34: Annual | L34: =AVERAGE(L22:L33) -> 154.4333333 | M34: =MAX(M22:M33) -> 293.2 | N34: =AVERAGE(N22:N33) -> 154.35 | O34: =MAX(O22:O33) -> 182.9
J36: =+A6 -> 2021 | K36: mg/Nm3 | L36: Monthly 1/2 hourly mean | M36: Monthly 1/2 hourly maximum | N36: Monthly daily mean | O36: Monthly daily maximum
J37: A3 | K37: Jan
K38: Feb
K39: Mar
K40: Apr
K41: May
K42: Jun
K43: Jul
K44: Aug
K45: Sep
K46: Oct
K47: Nov
A48: Comments : | K48: Dec
K49: Annual | L49: =AVERAGE(L37:L48) ->  | M49: =MAX(M37:M48) -> 0 | N49: =AVERAGE(N37:N48) ->  | O49: =MAX(O37:O48) -> 0
J51: =+A6 -> 2021 | K51: mg/Nm3 | L51: Monthly 1/2 hourly mean | M51: Monthly 1/2 hourly maximum | N51: Monthly daily mean | O51: Monthly daily maximum
J52: A4 | K52: Jan
K53: Feb
K54: Mar
K55: Apr
K56: May
K57: Jun
K58: Jul
K59: Aug
K60: Sep
K61: Oct
K62: Nov
K63: Dec
K64: Annual | L64: =AVERAGE(L52:L63) ->  | M64: =MAX(M52:M63) -> 0 | N64: =AVERAGE(N52:N63) ->  | O64: =MAX(O52:O63) -> 0
J66: =+A6 -> 2021 | K66: mg/Nm3 | L66: Monthly 1/2 hourly mean | M66: Monthly 1/2 hourly maximum | N66: Monthly daily mean | O66: Monthly daily maximum
J67: A5 | K67: Jan
K68: Feb
K69: Mar
K70: Apr
K71: May
K72: Jun
K73: Jul
K74: Aug
K75: Sep
K76: Oct
K77: Nov
K78: Dec
K79: Annual | L79: =AVERAGE(L67:L78) ->  | M79: =MAX(M67:M78) -> 0 | N79: =AVERAGE(N67:N78) ->  | O79: =MAX(O67:O78) -> 0

Sheet TOC
A1: =+'Cover Page'!$B$29 -> Annual Performance Report 2021 | E1: =+'Cover Page'!$B$33 -> Eastcroft Energy from Waste Plant
A3: Monitoring of Total organic carbon emissions | D3: Whole Installation | G3: See Notes in Cell Q3 | J3: =+A3 -> Monitoring of Total organic carbon emissions | N3: Per Combustion Line | Q3: Notes:
Q4: User to add logic to complete Whole installation, Table A5:G18. From the data in Per Combustion Line, Table J6:O79, subject to No. of lines installed
A5: mg/Nm3 | B5: 1/2 Hourly Reference Periods | E5: Daily Reference Periods
A6: =+'Cover Page'!C39 -> 2021 | B6: 1/2 hourly TOC ELV | C6: Monthly 1/2 hourly mean | D6: Highest 1/2 hourly maximum | E6: Daily TOC ELV | F6: Monthly daily mean | G6: Highest daily maximum | J6: =+A6 -> 2021 | K6: mg/Nm3 | L6: Monthly 1/2 hourly mean | M6: Monthly 1/2 hourly maximum | N6: Monthly daily mean | O6: Monthly daily maximum
A7: Jan | B7: 20 | C7: =(L7+L22)/2 -> 0.65 | D7: =MAX(M7,M22) -> 5.4 | E7: 10 | F7: =(N7+N22)/2 -> 0.65 | G7: =MAX(O7,O22) -> 1.1 | J7: A1 | K7: Jan | L7: 0.5 | M7: 4.8 | N7: 0.5 | O7: 0.7
A8: Feb | B8: 20 | C8: =(L8+L23)/2 -> 0.75 | D8: =MAX(M8,M23) -> 14.9 | E8: 10 | F8: =(N8+N23)/2 -> 0.75 | G8: =MAX(O8,O23) -> 1.1 | K8: Feb | L8: 0.6 | M8: 14.9 | N8: 0.6 | O8: 1.1
A9: Mar | B9: 20 | C9: 0.7 | D9: 45.4 | E9: 10 | F9: 0.7 | G9: 1.9 | K9: Mar | L9: 0.5 | M9: 18.5 | N9: 0.5 | O9: 0.7 | Q9: Whole Installation table A5:G18:
A10: Apr | B10: 20 | C10: 0.7 | D10: 11.6 | E10: 10 | F10: 0.7 | G10: 1.2 | K10: Apr | L10: 0.6 | M10: 5.9 | N10: 0.6 | O10: 1.2 | Q10: Mean: for 1/2 hourly and daily periods calculate mean of values across all operational combustion lines for the month
A11: May | B11: 20 | C11: 0.9 | D11: 6.7 | E11: 10 | F11: 0.9 | G11: 1.3 | K11: May | L11: 0.9 | M11: 6.7 | N11: 0.9 | O11: 1.3
A12: Jun | B12: 20 | C12: 0.95 | D12: 9.3 | E12: 10 | F12: 0.9 | G12: 1.3 | K12: Jun | L12: 1.1 | M12: 9.3 | N12: 1 | O12: 1.3
A13: Jul | B13: 20 | C13: 0.85 | D13: 7.2 | E13: 10 | F13: 0.6 | G13: 1.4 | K13: Jul | L13: 0.8 | M13: 3.5 | N13: 0.5 | O13: 0.9 | Q13: Maximum: for 1/2 hourly and daily periods use the highest value across all operational combustion lines for the month
A14: Aug | B14: 20 | C14: 0.75 | D14: 18.6 | E14: 10 | F14: 0.65 | G14: 1.3 | K14: Aug | L14: 0.6 | M14: 4.9 | N14: 0.5 | O14: 1
A15: Sep | B15: 20 | C15: 0.65 | D15: 5.4 | E15: 10 | F15: 0.65 | G15: 1 | K15: Sep | L15: 0.6 | M15: 4.7 | N15: 0.6 | O15: 1
A16: Oct | B16: 20 | C16: 0.5 | D16: 7.6 | E16: 10 | F16: 0.4 | G16: 0.8 | K16: Oct | L16: 0.5 | M16: 7.6 | N16: 0.4 | O16: 0.6
A17: Nov | B17: 20 | C17: 0.45 | D17: 17.6 | E17: 10 | F17: 0.45 | G17: 0.9 | K17: Nov | L17: 0.5 | M17: 3.9 | N17: 0.5 | O17: 0.6
A18: Dec | B18: 20 | C18: 0.5 | D18: 14.6 | E18: 10 | F18: 0.45 | G18: 0.7 | K18: Dec | L18: 0.5 | M18: 6.2 | N18: 0.5 | O18: 0.7
K19: Annual | L19: =AVERAGE(L7:L18) -> 0.6416666667 | M19: =MAX(M7:M18) -> 18.5 | N19: =AVERAGE(N7:N18) -> 0.5916666667 | O19: =MAX(O7:O18) -> 1.3
J21: =+A6 -> 2021 | K21: mg/Nm3 | L21: Monthly 1/2 hourly mean | M21: Monthly 1/2 hourly maximum | N21: Monthly daily mean | O21: Monthly daily maximum
J22: A2 | K22: Jan | L22: 0.8 | M22: 5.4 | N22: 0.8 | O22: 1.1
K23: Feb | L23: 0.9 | M23: 2.3 | N23: 0.9 | O23: 1.1
K24: Mar | L24: 0.9 | M24: 45.4 | N24: 0.9 | O24: 1.9
K25: Apr | L25: 0.8 | M25: 11.6 | N25: 0.8 | O25: 0.9
K26: May | L26: 0.9 | M26: 4.8 | N26: 0.9 | O26: 1.1
K27: Jun | L27: 0.8 | M27: 1.9 | N27: 0.8 | O27: 1
K28: Jul | L28: 0.9 | M28: 7.2 | N28: 0.7 | O28: 1.4
K29: Aug | L29: 0.9 | M29: 18.6 | N29: 0.8 | O29: 1.3
K30: Sep | L30: 0.7 | M30: 5.4 | N30: 0.7 | O30: 1
K31: Oct | L31: 0.5 | M31: 6.5 | N31: 0.4 | O31: 0.8
K32: Nov | L32: 0.4 | M32: 17.6 | N32: 0.4 | O32: 0.9
K33: Dec | L33: 0.5 | M33: 14.6 | N33: 0.4 | O33: 0.7
K34: Annual | L34: =AVERAGE(L22:L33) -> 0.75 | M34: =MAX(M22:M33) -> 45.4 | N34: =AVERAGE(N22:N33) -> 0.7083333333 | O34: =MAX(O22:O33) -> 1.9
J36: =+A6 -> 2021 | K36: mg/Nm3 | L36: Monthly 1/2 hourly mean | M36: Monthly 1/2 hourly maximum | N36: Monthly daily mean | O36: Monthly daily maximum
J37: A3 | K37: Jan
K38: Feb
K39: Mar
K40: Apr
K41: May
K42: Jun
K43: Jul
K44: Aug
K45: Sep
K46: Oct
K47: Nov
A48: Comments : | K48: Dec
K49: Annual | L49: =AVERAGE(L37:L48) ->  | M49: =MAX(M37:M48) -> 0 | N49: =AVERAGE(N37:N48) ->  | O49: =MAX(O37:O48) -> 0
J51: =+A6 -> 2021 | K51: mg/Nm3 | L51: Monthly 1/2 hourly mean | M51: Monthly 1/2 hourly maximum | N51: Monthly daily mean | O51: Monthly daily maximum
J52: A4 | K52: Jan
K53: Feb
K54: Mar
K55: Apr
K56: May
K57: Jun
K58: Jul
K59: Aug
K60: Sep
K61: Oct
K62: Nov
K63: Dec
K64: Annual | L64: =AVERAGE(L52:L63) ->  | M64: =MAX(M52:M63) -> 0 | N64: =AVERAGE(N52:N63) ->  | O64: =MAX(O52:O63) -> 0
J66: =+A6 -> 2021 | K66: mg/Nm3 | L66: Monthly 1/2 hourly mean | M66: Monthly 1/2 hourly maximum | N66: Monthly daily mean | O66: Monthly daily maximum
J67: A5 | K67: Jan
K68: Feb
K69: Mar
K70: Apr
K71: May
K72: Jun
K73: Jul
K74: Aug
K75: Sep
K76: Oct
K77: Nov
K78: Dec
K79: Annual | L79: =AVERAGE(L67:L78) ->  | M79: =MAX(M67:M78) -> 0 | N79: =AVERAGE(N67:N78) ->  | O79: =MAX(O67:O78) -> 0

Sheet Particulates
A1: =+'Cover Page'!$B$29 -> Annual Performance Report 2021 | E1: =+'Cover Page'!$B$33 -> Eastcroft Energy from Waste Plant
A3: Monitoring of Particulate matter emissions | D3: Whole Installation | G3: See Notes in Cell Q3 | J3: =+A3 -> Monitoring of Particulate matter emissions | N3: Per Combustion Line | Q3: Notes:
Q4: User to add logic to complete Whole installation, Table A5:G18. From the data in Per Combustion Line, Table J6:O79, subject to No. of lines installed
A5: mg/Nm3 | B5: 1/2 Hourly Reference Periods | E5: Daily Reference Periods
A6: =+'Cover Page'!C39 -> 2021 | B6: 1/2 hourly PM ELV | C6: Monthly 1/2 hourly mean | D6: Highest 1/2 hourly maximum | E6: Daily PM ELV | F6: Monthly daily mean | G6: Highest daily maximum | J6: =+A6 -> 2021 | K6: mg/Nm3 | L6: Monthly 1/2 hourly mean | M6: Monthly 1/2 hourly maximum | N6: Monthly daily mean | O6: Monthly daily maximum
A7: Jan | B7: 30 | C7: =(L7+L22)/2 -> 0.3 | D7: =MAX(M7,M22) -> 0.6 | E7: 10 | F7: =(N7+N22)/2 -> 0.25 | G7: =MAX(O7,O22) -> 0.3 | J7: A1 | K7: Jan | L7: 0.3 | M7: 0.5 | N7: 0.3 | O7: 0.3
A8: Feb | B8: 30 | C8: =(L8+L23)/2 -> 0.5 | D8: =MAX(M8,M23) -> 5.9 | E8: 10 | F8: =(N8+N23)/2 -> 0.5 | G8: =MAX(O8,O23) -> 1.6 | K8: Feb | L8: 0.5 | M8: 5.9 | N8: 0.5 | O8: 1.6
A9: Mar | B9: 30 | C9: 0.5 | D9: 1.8 | E9: 10 | F9: 0.45 | G9: 0.9 | K9: Mar | L9: 0.4 | M9: 1.1 | N9: 0.4 | O9: 0.8 | Q9: Whole Installation table A5:G18:
A10: Apr | B10: 30 | C10: 0.5 | D10: 1.7 | E10: 10 | F10: 0.45 | G10: 0.7 | K10: Apr | L10: 0.5 | M10: 0.8 | N10: 0.4 | O10: 0.5 | Q10: Mean: for 1/2 hourly and daily periods calculate mean of values across all operational combustion lines for the month
A11: May | B11: 30 | C11: 0.55 | D11: 1.1 | E11: 10 | F11: 0.5 | G11: 0.8 | K11: May | L11: 0.4 | M11: 0.7 | N11: 0.4 | O11: 0.5
A12: Jun | B12: 30 | C12: 0.5 | D12: 0.8 | E12: 10 | F12: 0.45 | G12: 0.6 | K12: Jun | L12: 0.4 | M12: 0.6 | N12: 0.4 | O12: 0.5
A13: Jul | B13: 30 | C13: 0.3 | D13: 5.2 | E13: 10 | F13: 0.1 | G13: 0.5 | K13: Jul | L13: 0.3 | M13: 5.2 | N13: 0 | O13: 0.3 | Q13: Maximum: for 1/2 hourly and daily periods use the highest value across all operational combustion lines for the month
A14: Aug | B14: 30 | C14: 0.35 | D14: 1 | E14: 10 | F14: 0.3 | G14: 0.7 | K14: Aug | L14: 0.4 | M14: 1 | N14: 0.4 | O14: 0.7
A15: Sep | B15: 30 | C15: 0.35 | D15: 2 | E15: 10 | F15: 0.35 | G15: 0.6 | K15: Sep | L15: 0.4 | M15: 2 | N15: 0.4 | O15: 0.6
A16: Oct | B16: 30 | C16: 0.4 | D16: 3.4 | E16: 10 | F16: 0.35 | G16: 1.1 | K16: Oct | L16: 0.5 | M16: 3.4 | N16: 0.4 | O16: 1.1
A17: Nov | B17: 30 | C17: 0.4 | D17: 0.9 | E17: 10 | F17: 0.3 | G17: 0.6 | K17: Nov | L17: 0.4 | M17: 0.9 | N17: 0.3 | O17: 0.6
A18: Dec | B18: 30 | C18: 0.45 | D18: 13.1 | E18: 10 | F18: 0.45 | G18: 2 | K18: Dec | L18: 0.4 | M18: 5.1 | N18: 0.4 | O18: 0.8
K19: Annual | L19: =AVERAGE(L7:L18) -> 0.4083333333 | M19: =MAX(M7:M18) -> 5.9 | N19: =AVERAGE(N7:N18) -> 0.3583333333 | O19: =MAX(O7:O18) -> 1.6
J21: =+A6 -> 2021 | K21: mg/Nm3 | L21: Monthly 1/2 hourly mean | M21: Monthly 1/2 hourly maximum | N21: Monthly daily mean | O21: Monthly daily maximum
J22: A2 | K22: Jan | L22: 0.3 | M22: 0.6 | N22: 0.2 | O22: 0.3
K23: Feb | L23: 0.5 | M23: 1.6 | N23: 0.5 | O23: 1
K24: Mar | L24: 0.6 | M24: 1.8 | N24: 0.5 | O24: 0.9
K25: Apr | L25: 0.5 | M25: 1.7 | N25: 0.5 | O25: 0.7
K26: May | L26: 0.7 | M26: 1.1 | N26: 0.6 | O26: 0.8
K27: Jun | L27: 0.6 | M27: 0.8 | N27: 0.5 | O27: 0.6
K28: Jul | L28: 0.3 | M28: 2.5 | N28: 0.2 | O28: 0.5
K29: Aug | L29: 0.3 | M29: 0.4 | N29: 0.2 | O29: 0.4
K30: Sep | L30: 0.3 | M30: 0.6 | N30: 0.3 | O30: 0.3
K31: Oct | L31: 0.3 | M31: 3 | N31: 0.3 | O31: 0.4
K32: Nov | L32: 0.4 | M32: 0.6 | N32: 0.3 | O32: 0.4
K33: Dec | L33: 0.5 | M33: 13.1 | N33: 0.5 | O33: 2
K34: Annual | L34: =AVERAGE(L22:L33) -> 0.4416666667 | M34: =MAX(M22:M33) -> 13.1 | N34: =AVERAGE(N22:N33) -> 0.3833333333 | O34: =MAX(O22:O33) -> 2
J36: =+A6 -> 2021 | K36: mg/Nm3 | L36: Monthly 1/2 hourly mean | M36: Monthly 1/2 hourly maximum | N36: Monthly daily mean | O36: Monthly daily maximum
J37: A3 | K37: Jan
K38: Feb
K39: Mar
K40: Apr
K41: May
K42: Jun
K43: Jul
K44: Aug
K45: Sep
K46: Oct
K47: Nov
A48: Comments : | K48: Dec
K49: Annual | L49: =AVERAGE(L37:L48) ->  | M49: =MAX(M37:M48) -> 0 | N49: =AVERAGE(N37:N48) ->  | O49: =MAX(O37:O48) -> 0
J51: =+A6 -> 2021 | K51: mg/Nm3 | L51: Monthly 1/2 hourly mean | M51: Monthly 1/2 hourly maximum | N51: Monthly daily mean | O51: Monthly daily maximum
J52: A4 | K52: Jan
K53: Feb
K54: Mar
K55: Apr
K56: May
K57: Jun
K58: Jul
K59: Aug
K60: Sep
K61: Oct
K62: Nov
K63: Dec
K64: Annual | L64: =AVERAGE(L52:L63) ->  | M64: =MAX(M52:M63) -> 0 | N64: =AVERAGE(N52:N63) ->  | O64: =MAX(O52:O63) -> 0
J66: =+A6 -> 2021 | K66: mg/Nm3 | L66: Monthly 1/2 hourly mean | M66: Monthly 1/2 hourly maximum | N66: Monthly daily mean | O66: Monthly daily maximum
J67: A5 | K67: Jan
K68: Feb
K69: Mar
K70: Apr
K71: May
K72: Jun
K73: Jul
K74: Aug
K75: Sep
K76: Oct
K77: Nov
K78: Dec
K79: Annual | L79: =AVERAGE(L67:L78) ->  | M79: =MAX(M67:M78) -> 0 | N79: =AVERAGE(N67:N78) ->  | O79: =MAX(O67:O78) -> 0

Sheet CO 95% 10 min
A1: =+'Cover Page'!$B$29 -> Annual Performance Report 2021 | E1: =+'Cover Page'!$B$33 -> Eastcroft Energy from Waste Plant
A3: Monitoring of Carbon Monoxide (10-minute avg) | E3: Whole Installation | H3: See Notes in Cell S3 | J3: =+A3 -> Monitoring of Carbon Monoxide (10-minute avg) | O3: Per Combustion Line | Q3: Notes: | S3: Notes:
S4: User to add logic to complete Whole installation, Table A5:H18. From the data in Per Combustion Line, Table K6:Q79, subject to No. of lines installed
A5: mg/Nm3 | B5: 10-minute Reference Periods | F5: Daily Reference Periods
A6: =+'Cover Page'!C39 -> 2021 | B6: 95%ile 10-min avg CO ELV | C6: 95%ile 10-min avg maximum | D6: Monthly CO 10-min avg mean | E6: 10-min avg maximum | F6: Daily CO ELV | G6: Monthly daily mean | H6: Highest daily maximum | K6: =+A6 -> 2021 | L6: mg/Nm3 | M6: 95%ile 10-min avg maximum | N6: Monthly CO 10-min avg mean | O6: 10-min avg maximum | P6: Monthly daily mean | Q6: Monthly daily maximum
A7: Jan | B7: 150 | C7: =MAX(M7,M22) -> 21.3 | D7: =(N7+N22)/2 -> 8.65 | E7: =MAX(O7,O22) -> 240.4 | F7: 50 | G7: =(P7+P22)/2 -> 8.65 | H7: =MAX(Q7,Q22) -> 13.2 | K7: A1 | L7: Jan | M7: 21.3 | N7: 9 | O7: 98.5 | P7: 9 | Q7: 13.2
A8: Feb | B8: =+B7 -> 150 | C8: =MAX(M8,M23) -> 19.2 | D8: =(N8+N23)/2 -> 7.95 | E8: =MAX(O8,O23) -> 129 | F8: =+F7 -> 50 | G8: =(P8+P23)/2 -> 7.9 | H8: =MAX(Q8,Q23) -> 11.2 | L8: Feb | M8: 17.8 | N8: 7.5 | O8: 129 | P8: 7.4 | Q8: 9.5
A9: Mar | B9: =+B8 -> 150 | C9: 19 | D9: 8.4 | E9: 354.9 | F9: =+F8 -> 50 | G9: 8.3 | H9: 12 | L9: Mar | M9: 18.5 | N9: 8.2 | O9: 354.9 | P9: 8.1 | Q9: 10.3 | S9: Whole Installation table A5:H18:
A10: Apr | B10: 150 | C10: 22.6 | D10: 9.55 | E10: 110.9 | F10: 50 | G10: 9.45 | H10: 16 | L10: Apr | M10: 22.6 | N10: 10.6 | O10: 66.9 | P10: 10.5 | Q10: 16 | S10: Mean: for 10-min and daily periods use average of all operational combustion lines.
A11: May | B11: 150 | C11: 39.3 | D11: 11 | E11: 487 | F11: 50 | G11: 11 | H11: 17.3 | L11: May | M11: 39.3 | N11: 13.2 | O11: 299.5 | P11: 13.2 | Q11: 17.3
A12: Jun | B12: 150 | C12: 22.1 | D12: 10.4 | E12: 255.5 | F12: 50 | G12: 10.35 | H12: 14.3 | L12: Jun | M12: 22.1 | N12: 12.3 | O12: 255.5 | P12: 12.3 | Q12: 14.3
A13: Jul | B13: 150 | C13: 36.4 | D13: 8.9 | E13: 117.6 | F13: 50 | G13: 8.4 | H13: 15.4 | L13: Jul | M13: 18.3 | N13: 9.6 | O13: 101.2 | P13: 9 | Q13: 11.2 | S13: Maximum: for 10-min and daily periods use the highest of all operational combustion lines in any month.
A14: Aug | B14: 150 | C14: 22.9 | D14: 6.55 | E14: 114 | F14: 50 | G14: 6.5 | H14: 10.3 | L14: Aug | M14: 21.4 | N14: 6.6 | O14: 114 | P14: 6.6 | Q14: 10.1
A15: Sep | B15: 150 | C15: 18.5 | D15: 5.6 | E15: 164.8 | F15: 50 | G15: 5.55 | H15: 8.4 | L15: Sep | M15: 16.2 | N15: 5.7 | O15: 164.8 | P15: 5.7 | Q15: 8.4
A16: Oct | B16: 150 | C16: 19.5 | D16: 5.1 | E16: 131.1 | F16: 50 | G16: 5.1 | H16: 8.5 | L16: Oct | M16: 19.5 | N16: 4.8 | O16: 119.1 | P16: 4.8 | Q16: 8.5
A17: Nov | B17: 150 | C17: 16.4 | D17: 5.2 | E17: 208.1 | F17: 50 | G17: 5.1 | H17: 7.8 | L17: Nov | M17: 12.9 | N17: 4.9 | O17: 76.4 | P17: 4.8 | Q17: 6.8
A18: Dec | B18: 150 | C18: 13.6 | D18: 4.9 | E18: 244.3 | F18: 50 | G18: 4.85 | H18: 7.5 | L18: Dec | M18: 12.2 | N18: 4.5 | O18: 244.3 | P18: 4.5 | Q18: 6.7
L19: Annual | M19: =AVERAGE(M7:M18) -> 20.175 | O19: =MAX(O7:O18) -> 354.9 | P19: =AVERAGE(P7:P18) -> 7.991666667 | Q19: =MAX(Q7:Q18) -> 17.3
K21: =+A6 -> 2021 | L21: mg/Nm3 | M21: 95%ile 10-min avg maximum | N21: Monthly CO 10-min avg mean | O21: 10-min avg maximum | P21: Monthly daily mean | Q21: Monthly daily maximum
K22: A2 | L22: Jan | M22: 16.9 | N22: 8.3 | O22: 240.4 | P22: 8.3 | Q22: 10.6
L23: Feb | M23: 19.2 | N23: 8.4 | O23: 43.5 | P23: 8.4 | Q23: 11.2
L24: Mar | M24: 19 | N24: 8.6 | O24: 167.2 | P24: 8.5 | Q24: 12
L25: Apr | M25: 19.3 | N25: 8.5 | O25: 110.9 | P25: 8.4 | Q25: 11.4
L26: May | M26: 25.6 | N26: 8.8 | O26: 487 | P26: 8.8 | Q26: 13.5
L27: Jun | M27: 21 | N27: 8.5 | O27: 52.6 | P27: 8.4 | Q27: 12.1
L28: Jul | M28: 36.4 | N28: 8.2 | O28: 117.6 | P28: 7.8 | Q28: 15.4
L29: Aug | M29: 22.9 | N29: 6.5 | O29: 75 | P29: 6.4 | Q29: 10.3
L30: Sep | M30: 18.5 | N30: 5.5 | O30: 77 | P30: 5.4 | Q30: 8.3
L31: Oct | M31: 15.2 | N31: 5.4 | O31: 131.1 | P31: 5.4 | Q31: 8.5
L32: Nov | M32: 16.4 | N32: 5.5 | O32: 208.1 | P32: 5.4 | Q32: 7.8
L33: Dec | M33: 13.6 | N33: 5.3 | O33: 217.4 | P33: 5.2 | Q33: 7.5
L34: Annual | M34: =AVERAGE(M22:M33) -> 20.33333333 | O34: =MAX(O22:O33) -> 487 | P34: =AVERAGE(P22:P33) -> 7.2 | Q34: =MAX(Q22:Q33) -> 15.4
K36: =+A6 -> 2021 | L36: mg/Nm3 | M36: 95%ile 10-min avg maximum | N36: Monthly CO 10-min avg mean | O36: 10-min avg maximum | P36: Monthly daily mean | Q36: Monthly daily maximum
K37: A3 | L37: Jan
L38: Feb
L39: Mar
L40: Apr
L41: May
L42: Jun
L43: Jul
L44: Aug
L45: Sep
L46: Oct
L47: Nov
A48: Comments : | L48: Dec
A49: Environment Agency explanatory note: The 10-minute average ELV is based on the “95th percentile”. In this case this means that 95% of the 10 minute averages in the relevant 24-hour period (i.e. 137) must be below 150 mg/Nm3, and 5% (i.e. 7) are allowed to be any value above 150 mg/Nm3. Whilst we expect operators to minimise CO emissions at all times, it is perfectly acceptable for the value of the maximum 10-minute average to be above 150 mg/Nm3, provided the 95th percentile ELV has been met for that period. | L49: Annual | M49: =AVERAGE(M37:M48) ->  | O49: =MAX(O37:O48) -> 0 | P49: =AVERAGE(P37:P48) ->  | Q49: =MAX(Q37:Q48) -> 0
K51: =+A6 -> 2021 | L51: mg/Nm3 | M51: 95%ile 10-min avg maximum | N51: Monthly CO 10-min avg mean | O51: 10-min avg maximum | P51: Monthly daily mean | Q51: Monthly daily maximum
K52: A4 | L52: Jan
L53: Feb
L54: Mar
L55: Apr
L56: May
L57: Jun
L58: Jul
L59: Aug
L60: Sep
L61: Oct
L62: Nov
L63: Dec
L64: Annual | M64: =AVERAGE(M52:M63) ->  | O64: =MAX(O52:O63) -> 0 | P64: =AVERAGE(P52:P63) ->  | Q64: =MAX(Q52:Q63) -> 0
K66: =+A6 -> 2021 | L66: mg/Nm3 | M66: 95%ile 10-min avg maximum | N66: Monthly CO 10-min avg mean | O66: 10-min avg maximum | P66: Monthly daily mean | Q66: Monthly daily maximum
K67: A5 | L67: Jan
L68: Feb
L69: Mar
L70: Apr
L71: May
L72: Jun
L73: Jul
L74: Aug
L75: Sep
L76: Oct
L77: Nov
L78: Dec
L79: Annual | M79: =AVERAGE(M67:M78) ->  | O79: =MAX(O67:O78) -> 0 | P79: =AVERAGE(P67:P78) ->  | Q79: =MAX(Q67:Q78) -> 0

Sheet Sheet1

Sheet NH3
A1: =+'Cover Page'!$B$29 -> Annual Performance Report 2021 | E1: =+'Cover Page'!$B$33 -> Eastcroft Energy from Waste Plant
A3: Monitoring of Ammnonia emissions | D3: Whole Installation | G3: See Notes in Cell Q3 | J3: =+A3 -> Monitoring of Ammnonia emissions | N3: Per Combustion Line | Q3: Notes:
Q4: User to add logic to complete Whole installation, Table A5:G18. From the data in Per Combustion Line, Table J6:O79, subject to No. of lines installed
A5: mg/Nm3 | B5: 1/2 Hourly Reference Periods | E5: Daily Reference Periods
A6: =+'Cover Page'!C39 -> 2021 | B6: 1/2 hourly NH3 ELV | C6: Monthly 1/2 hourly mean | D6: Highest 1/2 hourly maximum | E6: Daily NH3 ELV | F6: Monthly daily mean | G6: Highest daily maximum | J6: =+A6 -> 2021 | K6: mg/Nm3 | L6: Monthly 1/2 hourly mean | M6: Monthly 1/2 hourly maximum | N6: Monthly daily mean | O6: Monthly daily maximum
A7: Jan | B7: 0 | C7: =(L7+L22)/2 -> 0.9 | D7: =MAX(M7,M22) -> 7.8 | E7: 10 | F7: =(N7+N22)/2 -> 0.9 | G7: =MAX(O7,O22) -> 2.5 | J7: A1 | K7: Jan | L7: 0.8 | M7: 5.8 | N7: 0.8 | O7: 1.8
A8: Feb | B8: =+B7 -> 0 | C8: =(L8+L23)/2 -> 1.3 | D8: =MAX(M8,M23) -> 7.4 | E8: =+E7 -> 10 | F8: =(N8+N23)/2 -> 1.3 | G8: =MAX(O8,O23) -> 2.2 | K8: Feb | L8: 1.3 | M8: 7 | N8: 1.3 | O8: 2.2
A9: Mar | B9: =+B8 -> 0 | C9: 0.4 | D9: 6.4 | E9: =+E8 -> 10 | F9: 0.4 | G9: 0.9 | K9: Mar | L9: 0.5 | M9: 6.4 | N9: 0.5 | O9: 0.9 | Q9: Whole Installation table A5:G18:
A10: Apr | B10: 0 | C10: 0.3 | D10: 4.9 | E10: 10 | F10: 0.3 | G10: 1.4 | K10: Apr | L10: 0.3 | M10: 4.9 | N10: 0.3 | O10: 0.8 | Q10: Mean: for 1/2 hourly and daily periods calculate mean of values across all operational combustion lines for the month
A11: May | B11: 0 | C11: 0.5 | D11: 6.2 | E11: 10 | F11: 0.4 | G11: 1.2 | K11: May | L11: 0.5 | M11: 5.2 | N11: 0.4 | O11: 0.9
A12: Jun | B12: 0 | C12: 0.45 | D12: 3.4 | E12: 10 | F12: 0.4 | G12: 0.9 | K12: Jun | L12: 0.6 | M12: 3.4 | N12: 0.5 | O12: 0.9
A13: Jul | B13: 0 | C13: 6.15 | D13: 73.4 | E13: 10 | F13: 5.35 | G13: 26.5 | K13: Jul | L13: 4.9 | M13: 17.6 | N13: 4.2 | O13: 6 | Q13: Maximum: for 1/2 hourly and daily periods use the highest value across all operational combustion lines for the month
A14: Aug | B14: 0 | C14: 0.8 | D14: 7.5 | E14: 10 | F14: 0.75 | G14: 1.5 | K14: Aug | L14: 1 | M14: 4.3 | N14: 0.9 | O14: 1.5
A15: Sep | B15: 0 | C15: 0.6 | D15: 4.2 | E15: 10 | F15: 0.6 | G15: 1 | K15: Sep | L15: 0.7 | M15: 3.6 | N15: 0.7 | O15: 1
A16: Oct | B16: 0 | C16: 0.8 | D16: 8.3 | E16: 10 | F16: 0.75 | G16: 2 | K16: Oct | L16: 0.8 | M16: 4.7 | N16: 0.7 | O16: 2
A17: Nov | B17: 0 | C17: 0.7 | D17: 2.8 | E17: 10 | F17: 0.65 | G17: 0.9 | K17: Nov | L17: 0.7 | M17: 2.8 | N17: 0.7 | O17: 0.9
A18: Dec | B18: 0 | C18: 0.7 | D18: 11.8 | E18: 10 | F18: 0.6 | G18: 1.1 | K18: Dec | L18: 0.7 | M18: 6.5 | N18: 0.6 | O18: 1
K19: Annual | L19: =AVERAGE(L7:L18) -> 1.066666667 | M19: =MAX(M7:M18) -> 17.6 | N19: =AVERAGE(N7:N18) -> 0.9666666667 | O19: =MAX(O7:O18) -> 6
J21: =+A6 -> 2021 | K21: mg/Nm3 | L21: Monthly 1/2 hourly mean | M21: Monthly 1/2 hourly maximum | N21: Monthly daily mean | O21: Monthly daily maximum
J22: A2 | K22: Jan | L22: 1 | M22: 7.8 | N22: 1 | O22: 2.5
K23: Feb | L23: 1.3 | M23: 7.4 | N23: 1.3 | O23: 2.2
K24: Mar | L24: 0.3 | M24: 5.2 | N24: 0.3 | O24: 0.9
K25: Apr | L25: 0.3 | M25: 3.1 | N25: 0.3 | O25: 1.4
K26: May | L26: 0.5 | M26: 6.2 | N26: 0.4 | O26: 1.2
K27: Jun | L27: 0.3 | M27: 3.1 | N27: 0.3 | O27: 0.7
K28: Jul | L28: 7.4 | M28: 73.4 | N28: 6.5 | O28: 26.5
K29: Aug | L29: 0.6 | M29: 7.5 | N29: 0.6 | O29: 1.5
K30: Sep | L30: 0.5 | M30: 4.2 | N30: 0.5 | O30: 0.7
K31: Oct | L31: 0.8 | M31: 8.3 | N31: 0.8 | O31: 1.8
K32: Nov | L32: 0.7 | M32: 2.3 | N32: 0.6 | O32: 0.8
K33: Dec | L33: 0.7 | M33: 11.8 | N33: 0.6 | O33: 1.1
K34: Annual | L34: =AVERAGE(L22:L33) -> 1.2 | M34: =MAX(M22:M33) -> 73.4 | N34: =AVERAGE(N22:N33) -> 1.1 | O34: =MAX(O22:O33) -> 26.5
J36: =+A6 -> 2021 | K36: mg/Nm3 | L36: Monthly 1/2 hourly mean | M36: Monthly 1/2 hourly maximum | N36: Monthly daily mean | O36: Monthly daily maximum
J37: A3 | K37: Jan
K38: Feb
K39: Mar
K40: Apr
K41: May
K42: Jun
K43: Jul
K44: Aug
K45: Sep
K46: Oct
K47: Nov
A48: Comments : | K48: Dec
A49: An indicated ELV value of zero in the table above means that no ammonia limit is set in the permit. | K49: Annual | L49: =AVERAGE(L37:L48) ->  | M49: =MAX(M37:M48) -> 0 | N49: =AVERAGE(N37:N48) ->  | O49: =MAX(O37:O48) -> 0
J51: =+A6 -> 2021 | K51: mg/Nm3 | L51: Monthly 1/2 hourly mean | M51: Monthly 1/2 hourly maximum | N51: Monthly daily mean | O51: Monthly daily maximum
J52: A4 | K52: Jan
K53: Feb
K54: Mar
K55: Apr
K56: May
K57: Jun
K58: Jul
K59: Aug
K60: Sep
K61: Oct
K62: Nov
K63: Dec
K64: Annual | L64: =AVERAGE(L52:L63) ->  | M64: =MAX(M52:M63) -> 0 | N64: =AVERAGE(N52:N63) ->  | O64: =MAX(O52:O63) -> 0
J66: =+A6 -> 2021 | K66: mg/Nm3 | L66: Monthly 1/2 hourly mean | M66: Monthly 1/2 hourly maximum | N66: Monthly daily mean | O66: Monthly daily maximum
J67: A5 | K67: Jan
K68: Feb
K69: Mar
K70: Apr
K71: May
K72: Jun
K73: Jul
K74: Aug
K75: Sep
K76: Oct
K77: Nov
K78: Dec
K79: Annual | L79: =AVERAGE(L67:L78) ->  | M79: =MAX(M67:M78) -> 0 | N79: =AVERAGE(N67:N78) ->  | O79: =MAX(O67:O78) -> 0
